[Event "*** Titled Tuesday Blitz"]
[Site "Chess.com"]
[Date "2018.10.02"]
[Round "4"]
[White "matiss90"]
[Black "alishersuleymenov"]
[Result "1-0"]
[WhiteElo "2442"]
[BlackElo "2481"]
[TimeControl "180+2"]
[EndTime "13:45:18 PDT"]
[Termination "matiss90 won by resignation"]

1. e4 {[%clk 0:03:01.9]} 1... c5 {[%clk 0:03:00.7]} 2. Nf3 {[%clk 0:03:02.7]}
2... Nc6 {[%clk 0:03:01.8]} 3. d4 {[%clk 0:03:02.8]} 3... cxd4 {[%clk
0:03:03.7]} 4. Nxd4 {[%clk 0:03:04.7]} 4... Nf6 {[%clk 0:03:05.3]} 5. Nc3 {[%clk
0:03:05.6]} 5... d6 {[%clk 0:03:06.6]} 6. Bc4 {[%clk 0:03:06]} 6... e6 {[%clk
0:03:05.8]} 7. Be3 {[%clk 0:03:06.8]} 7... a6 {[%clk 0:03:05.2]} 8. Bb3 {[%clk
0:03:07.6]} 8... Be7 {[%clk 0:03:06.3]} 9. Qe2 {[%clk 0:03:07]} 9... O-O {[%clk
0:03:06.4]} 10. O-O-O {[%clk 0:03:07.8]} 10... Qe8 {[%clk 0:03:07.7]} 11. Rhg1
{[%clk 0:03:06.2]} 11... b5 {[%clk 0:02:59.6]} 12. g4 {[%clk 0:03:05.2]} 12...
Na5 {[%clk 0:02:27.5]} 13. g5 {[%clk 0:03:02.5]} 13... Nd7 {[%clk 0:02:28.9]}
14. f4 {[%clk 0:03:01]} 14... Nc5 {[%clk 0:02:29.4]} 15. f5 {[%clk 0:02:59.9]}
15... b4 {[%clk 0:02:21.8]} 16. Nb1 {[%clk 0:02:47.6]} 16... e5 {[%clk
0:02:01.3]} 17. Bd5 {[%clk 0:02:41]} 17... exd4 {[%clk 0:01:50]} 18. Bxd4 {[%clk
0:02:41.5]} 18... Bb7 {[%clk 0:01:15.4]} 19. g6 {[%clk 0:02:38]} 19... Kh8
{[%clk 0:00:34.7]} 20. Qh5 {[%clk 0:02:14.9]} 20... fxg6 {[%clk 0:00:18.8]} 21.
fxg6 {[%clk 0:02:15.2]} 21... Qxg6 {[%clk 0:00:07.1]} 22. Rxg6 {[%clk
0:02:12.8]} 22... Bf6 {[%clk 0:00:07.7]} 23. Rxf6 {[%clk 0:02:05.8]} 23... Rxf6
{[%clk 0:00:07.3]} 24. Bxf6 {[%clk 0:02:06.1]} 24... gxf6 {[%clk 0:00:09.2]} 25.
Bxb7 {[%clk 0:02:04.9]} 1-0

[Event "*** Titled Tuesday Blitz"]
[Site "Chess.com"]
[Date "2018.10.02"]
[Round "4"]
[White "Iball95"]
[Black "luizzy"]
[Result "1-0"]
[WhiteElo "2578"]
[BlackElo "2417"]
[TimeControl "180+2"]
[EndTime "13:45:27 PDT"]
[Termination "Iball95 won by resignation"]

1. d4 {[%clk 0:02:59.5]} 1... Nf6 {[%clk 0:02:59.2]} 2. Bf4 {[%clk 0:03:00.6]}
2... g6 {[%clk 0:02:58.5]} 3. Nc3 {[%clk 0:03:01.4]} 3... Bg7 {[%clk 0:02:55.7]}
4. e4 {[%clk 0:03:02.5]} 4... d6 {[%clk 0:02:56.6]} 5. Qd2 {[%clk 0:03:03.5]}
5... h6 {[%clk 0:02:56.4]} 6. O-O-O {[%clk 0:03:02.7]} 6... Nbd7 {[%clk
0:02:52]} 7. e5 {[%clk 0:03:02.1]} 7... dxe5 {[%clk 0:02:53.1]} 8. dxe5 {[%clk
0:03:02.4]} 8... Nh5 {[%clk 0:02:50.6]} 9. e6 {[%clk 0:03:02.9]} 9... fxe6
{[%clk 0:02:51.8]} 10. Bd3 {[%clk 0:02:52.6]} 10... Kf7 {[%clk 0:02:35.5]} 11.
Nf3 {[%clk 0:02:42.9]} 11... Bf6 {[%clk 0:02:04.1]} 12. Bxh6 {[%clk 0:02:36.1]}
12... c6 {[%clk 0:01:53]} 13. g4 {[%clk 0:02:35.6]} 13... Ng7 {[%clk 0:01:49.6]}
14. g5 {[%clk 0:02:27.9]} 14... Bxc3 {[%clk 0:01:38.7]} 15. Qxc3 {[%clk
0:02:29.8]} 15... Qg8 {[%clk 0:01:03.7]} 16. Bc4 {[%clk 0:01:37.9]} 16... Nb6
{[%clk 0:00:19.2]} 17. Ne5+ {[%clk 0:01:36.4]} 17... Ke8 {[%clk 0:00:20.5]} 18.
Nxg6 {[%clk 0:01:28.2]} 18... Rh7 {[%clk 0:00:21.1]} 19. Nxe7 {[%clk 0:01:26.8]}
19... Kxe7 {[%clk 0:00:19.7]} 20. Qf6+ {[%clk 0:01:27.6]} 1-0

[Event "*** Titled Tuesday Blitz"]
[Site "Chess.com"]
[Date "2018.10.02"]
[Round "4"]
[White "lucasmito"]
[Black "51616516516"]
[Result "0-1"]
[WhiteElo "2384"]
[BlackElo "2299"]
[TimeControl "180+2"]
[EndTime "13:45:40 PDT"]
[Termination "51616516516 won by resignation"]

1. e4 {[%clk 0:03:01.9]} 1... c5 {[%clk 0:02:56.6]} 2. Nf3 {[%clk 0:03:02.6]}
2... g6 {[%clk 0:02:56.5]} 3. d4 {[%clk 0:03:01.7]} 3... cxd4 {[%clk 0:02:57.4]}
4. Nxd4 {[%clk 0:03:03.6]} 4... Nc6 {[%clk 0:02:57.8]} 5. Nc3 {[%clk 0:03:04.5]}
5... Bg7 {[%clk 0:02:56.8]} 6. Be3 {[%clk 0:03:05.5]} 6... Nf6 {[%clk 0:02:57]}
7. Bc4 {[%clk 0:03:06.8]} 7... O-O {[%clk 0:02:58.4]} 8. Bb3 {[%clk 0:03:06.9]}
8... d6 {[%clk 0:02:59.6]} 9. f3 {[%clk 0:03:07.9]} 9... Bd7 {[%clk 0:02:59.8]}
10. Qd2 {[%clk 0:03:08.8]} 10... Nxd4 {[%clk 0:03:01.1]} 11. Bxd4 {[%clk
0:03:08.8]} 11... b5 {[%clk 0:03:03]} 12. O-O-O {[%clk 0:02:55.8]} 12... a5
{[%clk 0:03:02.8]} 13. a4 {[%clk 0:02:57]} 13... b4 {[%clk 0:03:04]} 14. Nd5
{[%clk 0:02:58.1]} 14... Nxd5 {[%clk 0:03:05]} 15. exd5 {[%clk 0:03:00]} 15...
Qe8 {[%clk 0:02:38.6]} 16. Bxg7 {[%clk 0:02:59.2]} 16... Kxg7 {[%clk 0:02:39.6]}
17. Rhe1 {[%clk 0:03:00.5]} 17... Bxa4 {[%clk 0:02:38.8]} 18. Bxa4 {[%clk
0:02:58.9]} 18... Qxa4 {[%clk 0:02:39.6]} 19. Qd4+ {[%clk 0:03:00.1]} 19... Kg8
{[%clk 0:02:37.7]} 20. Rxe7 {[%clk 0:03:02]} 20... Rac8 {[%clk 0:02:31.3]} 21.
Re2 {[%clk 0:03:01.8]} 21... Rc5 {[%clk 0:01:57.4]} 22. Kb1 {[%clk 0:02:46.3]}
22... Rfc8 {[%clk 0:01:55.2]} 23. Rdd2 {[%clk 0:02:47.7]} 23... Qb5 {[%clk
0:01:49.6]} 24. h4 {[%clk 0:02:47.3]} 24... b3 {[%clk 0:01:09.8]} 25. c3 {[%clk
0:01:58.2]} 25... Rc4 {[%clk 0:01:10.3]} 26. Qf6 {[%clk 0:01:19.9]} 26... Qa4
{[%clk 0:01:10.9]} 27. Rd4 {[%clk 0:01:19.7]} 27... Qa2+ {[%clk 0:01:02.4]} 28.
Kc1 {[%clk 0:01:21]} 28... Qa1+ {[%clk 0:01:03.8]} 29. Kd2 {[%clk 0:01:22.1]}
29... Qxb2+ {[%clk 0:01:05.1]} 30. Ke3 {[%clk 0:01:23.5]} 30... Qxc3+ {[%clk
0:00:58.7]} 31. Rd3 {[%clk 0:01:24.6]} 0-1

[Event "*** Titled Tuesday Blitz"]
[Site "Chess.com"]
[Date "2018.10.02"]
[Round "4"]
[White "GrigorGrigorov"]
[Black "Blitzstream"]
[Result "1-0"]
[WhiteElo "2733"]
[BlackElo "2621"]
[TimeControl "180+2"]
[EndTime "13:45:58 PDT"]
[Termination "GrigorGrigorov won by resignation"]

1. d4 {[%clk 0:03:01.9]} 1... Nf6 {[%clk 0:03:00.3]} 2. c4 {[%clk 0:03:02.4]}
2... c6 {[%clk 0:03:01.6]} 3. Nc3 {[%clk 0:03:00.3]} 3... d5 {[%clk 0:03:01.7]}
4. cxd5 {[%clk 0:03:01.4]} 4... cxd5 {[%clk 0:02:59.8]} 5. Bf4 {[%clk
0:03:02.1]} 5... Nc6 {[%clk 0:02:57.1]} 6. e3 {[%clk 0:03:03.2]} 6... Ne4 {[%clk
0:02:50.8]} 7. Bd3 {[%clk 0:02:59.7]} 7... Nxc3 {[%clk 0:02:51.1]} 8. bxc3
{[%clk 0:03:00.5]} 8... g6 {[%clk 0:02:52.5]} 9. h4 {[%clk 0:02:45.2]} 9... Bf5
{[%clk 0:02:15.8]} 10. h5 {[%clk 0:02:40.7]} 10... Qa5 {[%clk 0:02:12.1]} 11.
Ne2 {[%clk 0:02:39.7]} 11... Bg7 {[%clk 0:02:08.1]} 12. Bxf5 {[%clk 0:02:33.2]}
12... gxf5 {[%clk 0:02:08.7]} 13. Qb1 {[%clk 0:02:34.2]} 13... Qa6 {[%clk
0:01:03.5]} 14. Qxf5 {[%clk 0:02:10.8]} 14... e6 {[%clk 0:01:04.9]} 15. Qg5
{[%clk 0:02:03.6]} 15... Bf8 {[%clk 0:01:05.8]} 16. h6 {[%clk 0:01:54.3]} 16...
Be7 {[%clk 0:00:40.9]} 17. Qg7 {[%clk 0:01:51.5]} 17... Kd7 {[%clk 0:00:42]} 18.
Qxf7 {[%clk 0:01:48.1]} 18... Raf8 {[%clk 0:00:42.3]} 19. Qh5 {[%clk 0:01:48.6]}
19... Rhg8 {[%clk 0:00:43.5]} 20. O-O {[%clk 0:01:45.4]} 20... Rf5 {[%clk
0:00:35.1]} 21. Qf3 {[%clk 0:01:42.8]} 21... Kc8 {[%clk 0:00:30.9]} 22. e4
{[%clk 0:01:31.7]} 22... dxe4 {[%clk 0:00:28.6]} 23. Qxe4 {[%clk 0:01:32.3]}
23... Na5 {[%clk 0:00:29.8]} 24. Ng3 {[%clk 0:01:26.4]} 24... Rff8 {[%clk
0:00:27.8]} 25. Qe5 {[%clk 0:01:21.7]} 25... Bd8 {[%clk 0:00:24.3]} 26. Ne4
{[%clk 0:01:16.3]} 26... Nc4 {[%clk 0:00:22.7]} 27. Qb8+ {[%clk 0:01:15.5]}
27... Kd7 {[%clk 0:00:23.9]} 28. Nc5+ {[%clk 0:01:16.4]} 1-0

[Event "*** Titled Tuesday Blitz"]
[Site "Chess.com"]
[Date "2018.10.02"]
[Round "4"]
[White "AnkitGajwa"]
[Black "WPWPWP-2015"]
[Result "1-0"]
[WhiteElo "2310"]
[BlackElo "2289"]
[TimeControl "180+2"]
[EndTime "13:46:32 PDT"]
[Termination "AnkitGajwa won by checkmate"]

1. d4 {[%clk 0:03:01.8]} 1... Nf6 {[%clk 0:03:00.2]} 2. c4 {[%clk 0:02:40.7]}
2... e6 {[%clk 0:03:00.7]} 3. Nc3 {[%clk 0:02:41.4]} 3... Bb4 {[%clk 0:03:00.4]}
4. f3 {[%clk 0:02:39.9]} 4... d5 {[%clk 0:02:35]} 5. a3 {[%clk 0:02:40.1]} 5...
Be7 {[%clk 0:02:32.7]} 6. e4 {[%clk 0:02:39.7]} 6... O-O {[%clk 0:02:31.9]} 7.
cxd5 {[%clk 0:02:37.6]} 7... exd5 {[%clk 0:02:31.3]} 8. e5 {[%clk 0:02:38.6]}
8... Ne8 {[%clk 0:02:27.7]} 9. f4 {[%clk 0:02:38.9]} 9... Bf5 {[%clk 0:02:21.7]}
10. Nf3 {[%clk 0:02:38.6]} 10... Nd7 {[%clk 0:02:12.1]} 11. Nxd5 {[%clk
0:02:38.2]} 11... c6 {[%clk 0:01:48.7]} 12. Nc3 {[%clk 0:02:32.9]} 12... f6
{[%clk 0:01:34.5]} 13. Bd3 {[%clk 0:02:31.6]} 13... fxe5 {[%clk 0:01:34.1]} 14.
dxe5 {[%clk 0:02:30.5]} 14... Bg4 {[%clk 0:01:07.7]} 15. O-O {[%clk 0:02:29.1]}
15... Nc5 {[%clk 0:00:59.2]} 16. Bc4+ {[%clk 0:02:28]} 16... Kh8 {[%clk
0:00:59.6]} 17. Be3 {[%clk 0:02:28.9]} 17... Nc7 {[%clk 0:00:53.8]} 18. Qc2
{[%clk 0:02:16.5]} 18... Bf5 {[%clk 0:00:51.9]} 19. Qf2 {[%clk 0:02:16.5]} 19...
N5e6 {[%clk 0:00:32.4]} 20. h3 {[%clk 0:02:06.7]} 20... b5 {[%clk 0:00:27.4]}
21. Bb3 {[%clk 0:02:04.4]} 21... Bg6 {[%clk 0:00:18.6]} 22. Qg3 {[%clk
0:02:01.7]} 22... Qe8 {[%clk 0:00:13.8]} 23. Nh4 {[%clk 0:01:57.7]} 23... Bd3
{[%clk 0:00:13.4]} 24. Rf2 {[%clk 0:01:55.5]} 24... Bxh4 {[%clk 0:00:12.9]} 25.
Qxh4 {[%clk 0:01:56.1]} 25... Rd8 {[%clk 0:00:12.2]} 26. g4 {[%clk 0:01:51.3]}
26... c5 {[%clk 0:00:10.1]} 27. Bxe6 {[%clk 0:01:48.7]} 27... Nxe6 {[%clk
0:00:10.4]} 28. f5 {[%clk 0:01:49.8]} 28... Nd4 {[%clk 0:00:11.3]} 29. Bg5
{[%clk 0:01:49.3]} 29... Rc8 {[%clk 0:00:06.6]} 30. Re1 {[%clk 0:01:48.9]} 30...
b4 {[%clk 0:00:07.3]} 31. Nd5 {[%clk 0:01:48.2]} 31... Qd7 {[%clk 0:00:07.6]}
32. Ne7 {[%clk 0:01:48.3]} 32... Rce8 {[%clk 0:00:08.1]} 33. f6 {[%clk
0:01:47.9]} 33... g6 {[%clk 0:00:07.9]} 34. f7 {[%clk 0:01:48.1]} 34... Rd8
{[%clk 0:00:08.4]} 35. Bf6# {[%clk 0:01:49]} 1-0

[Event "*** Titled Tuesday Blitz"]
[Site "Chess.com"]
[Date "2018.10.02"]
[Round "4"]
[White "mc4chess"]
[Black "andrzej"]
[Result "0-1"]
[WhiteElo "2406"]
[BlackElo "2207"]
[TimeControl "180+2"]
[EndTime "13:46:34 PDT"]
[Termination "andrzej won by checkmate"]

1. e4 {[%clk 0:03:00.6]} 1... c6 {[%clk 0:03:00]} 2. d4 {[%clk 0:03:00.8]} 2...
d5 {[%clk 0:03:01.5]} 3. Nc3 {[%clk 0:03:02.3]} 3... dxe4 {[%clk 0:03:02.2]} 4.
Nxe4 {[%clk 0:03:04.2]} 4... Nd7 {[%clk 0:03:03.5]} 5. Nf3 {[%clk 0:03:03.5]}
5... Ngf6 {[%clk 0:03:03.1]} 6. Neg5 {[%clk 0:03:01.2]} 6... e6 {[%clk
0:02:46.1]} 7. Bd3 {[%clk 0:03:00.2]} 7... Bd6 {[%clk 0:02:42.8]} 8. Qe2 {[%clk
0:02:59.5]} 8... O-O {[%clk 0:02:42.5]} 9. c3 {[%clk 0:02:59.5]} 9... h6 {[%clk
0:02:38.2]} 10. h4 {[%clk 0:02:59.8]} 10... Re8 {[%clk 0:02:31.8]} 11. Be3
{[%clk 0:02:59.3]} 11... e5 {[%clk 0:02:29.8]} 12. Bc4 {[%clk 0:02:51.3]} 12...
hxg5 {[%clk 0:02:15.4]} 13. hxg5 {[%clk 0:02:48.2]} 13... exd4 {[%clk
0:02:05.9]} 14. gxf6 {[%clk 0:02:44.7]} 14... dxe3 {[%clk 0:02:04.4]} 15. O-O-O
{[%clk 0:02:39.5]} 15... Qxf6 {[%clk 0:01:50.6]} 16. Qc2 {[%clk 0:02:34.9]}
16... g6 {[%clk 0:01:41.7]} 17. Rh6 {[%clk 0:02:35.4]} 17... Nf8 {[%clk
0:00:53.5]} 18. Rdh1 {[%clk 0:01:29.8]} 18... Bf5 {[%clk 0:00:51.4]} 19. Qb3
{[%clk 0:01:26.1]} 19... exf2 {[%clk 0:00:37.3]} 20. Bxf7+ {[%clk 0:00:18.8]}
20... Kg7 {[%clk 0:00:38]} 21. Qxb7 {[%clk 0:00:17.2]} 21... Bf4+ {[%clk
0:00:35.9]} 22. Kd1 {[%clk 0:00:18]} 22... Rad8+ {[%clk 0:00:30.7]} 23. Nd4
{[%clk 0:00:16.5]} 23... Rxd4+ {[%clk 0:00:28]} 24. cxd4 {[%clk 0:00:15.3]}
24... Qxd4# {[%clk 0:00:28.9]} 0-1

[Event "*** Titled Tuesday Blitz"]
[Site "Chess.com"]
[Date "2018.10.02"]
[Round "4"]
[White "Turkey-Champion"]
[Black "pedromartinez91"]
[Result "1-0"]
[WhiteElo "2312"]
[BlackElo "2360"]
[TimeControl "180+2"]
[EndTime "13:46:43 PDT"]
[Termination "Turkey-Champion won by resignation"]

1. e4 {[%clk 0:03:01.3]} 1... c5 {[%clk 0:02:58.9]} 2. Nf3 {[%clk 0:02:57]} 2...
Nc6 {[%clk 0:02:55.6]} 3. d4 {[%clk 0:02:57.4]} 3... cxd4 {[%clk 0:02:54.9]} 4.
Nxd4 {[%clk 0:02:59.3]} 4... d5 {[%clk 0:02:55.8]} 5. Nxc6 {[%clk 0:02:43.5]}
5... bxc6 {[%clk 0:02:55.2]} 6. exd5 {[%clk 0:02:44.6]} 6... Qxd5 {[%clk
0:02:55.9]} 7. Qxd5 {[%clk 0:02:45.2]} 7... cxd5 {[%clk 0:02:55.6]} 8. Nc3
{[%clk 0:02:46.3]} 8... e6 {[%clk 0:02:56.2]} 9. Bb5+ {[%clk 0:02:46.3]} 9...
Bd7 {[%clk 0:02:56.7]} 10. O-O {[%clk 0:02:46.1]} 10... Rc8 {[%clk 0:02:48.7]}
11. Be3 {[%clk 0:02:41.2]} 11... Bc5 {[%clk 0:02:33.6]} 12. Bxd7+ {[%clk
0:02:14.7]} 12... Kxd7 {[%clk 0:02:32.6]} 13. Rad1 {[%clk 0:02:16]} 13... Nf6
{[%clk 0:02:27.2]} 14. Rfe1 {[%clk 0:02:04.7]} 14... Rc6 {[%clk 0:02:12.9]} 15.
Rd2 {[%clk 0:01:47.9]} 15... Rb8 {[%clk 0:02:11.3]} 16. Red1 {[%clk 0:01:43.9]}
16... Rxb2 {[%clk 0:02:01.7]} 17. Bxc5 {[%clk 0:01:40]} 17... Rxc5 {[%clk
0:02:01.5]} 18. Na4 {[%clk 0:01:41.4]} 18... Rcb5 {[%clk 0:02:01.2]} 19. Nxb2
{[%clk 0:01:41]} 19... Rxb2 {[%clk 0:02:03.1]} 20. c4 {[%clk 0:01:42.6]} 20...
Rb4 {[%clk 0:01:58.9]} 21. cxd5 {[%clk 0:01:42.7]} 21... Nxd5 {[%clk 0:02:00.8]}
22. Rd4 {[%clk 0:01:38.4]} 22... Rb2 {[%clk 0:02:00.8]} 23. Ra4 {[%clk
0:01:38.3]} 23... Ke7 {[%clk 0:01:58.7]} 24. Rxa7+ {[%clk 0:01:38.7]} 24... Kf6
{[%clk 0:02:00.4]} 25. g3 {[%clk 0:01:34]} 25... h5 {[%clk 0:01:58.7]} 26. h4
{[%clk 0:01:33]} 26... Nc3 {[%clk 0:01:57.3]} 27. Ra1 {[%clk 0:01:33]} 27... Ne4
{[%clk 0:01:58.5]} 28. Rf1 {[%clk 0:01:30.5]} 28... Nd2 {[%clk 0:01:55.4]} 29.
Rd1 {[%clk 0:01:31.1]} 29... e5 {[%clk 0:01:50]} 30. a4 {[%clk 0:01:28.7]} 30...
e4 {[%clk 0:01:49.2]} 31. Rd7 {[%clk 0:01:18.4]} 31... Nf3+ {[%clk 0:01:49.7]}
32. Kg2 {[%clk 0:01:17.4]} 32... Ne5 {[%clk 0:01:50.7]} 33. R7d2 {[%clk
0:01:17.1]} 33... Rb4 {[%clk 0:01:51.4]} 34. Rd4 {[%clk 0:01:17.2]} 34... Rb2
{[%clk 0:01:51]} 35. Rxe4 {[%clk 0:01:16.1]} 35... Ng4 {[%clk 0:01:52.2]} 36.
Rf4+ {[%clk 0:01:14]} 36... Kg6 {[%clk 0:01:53.5]} 37. Rd6+ {[%clk 0:01:13.2]}
37... f6 {[%clk 0:01:54.6]} 38. a5 {[%clk 0:01:13.7]} 38... Ra2 {[%clk
0:01:55.4]} 39. a6 {[%clk 0:01:14]} 39... Ne3+ {[%clk 0:01:56.6]} 40. Kf3 {[%clk
0:01:13]} 40... Nf5 {[%clk 0:01:47.2]} 41. Rb6 {[%clk 0:01:09.9]} 41... Ne7
{[%clk 0:01:47.3]} 42. Rd4 {[%clk 0:01:06.5]} 42... Ra3+ {[%clk 0:01:41.4]} 43.
Kg2 {[%clk 0:01:06.8]} 43... Nc8 {[%clk 0:01:37.4]} 44. Rb8 {[%clk 0:01:04.9]}
44... Na7 {[%clk 0:01:38]} 45. Rd6 {[%clk 0:01:04.1]} 45... Ra5 {[%clk
0:01:33.7]} 46. Rb7 {[%clk 0:01:03.9]} 46... Nc8 {[%clk 0:01:34.6]} 47. Rc6
{[%clk 0:01:04.5]} 47... Rxa6 {[%clk 0:01:33.4]} 48. Rxa6 {[%clk 0:01:05.2]} 1-0

[Event "*** Titled Tuesday Blitz"]
[Site "Chess.com"]
[Date "2018.10.02"]
[Round "4"]
[White "josmito10"]
[Black "mjray79"]
[Result "1-0"]
[WhiteElo "2750"]
[BlackElo "2126"]
[TimeControl "180+2"]
[EndTime "13:46:47 PDT"]
[Termination "josmito10 won by checkmate"]

1. d4 {[%clk 0:03:01.9]} 1... Nf6 {[%clk 0:02:59.6]} 2. c4 {[%clk 0:03:02.1]}
2... e6 {[%clk 0:02:59.8]} 3. g3 {[%clk 0:03:03.2]} 3... d5 {[%clk 0:02:58]} 4.
Nf3 {[%clk 0:03:04.3]} 4... c6 {[%clk 0:02:58.7]} 5. Qc2 {[%clk 0:03:04.2]} 5...
Be7 {[%clk 0:02:59.3]} 6. Bg2 {[%clk 0:03:05.5]} 6... Nbd7 {[%clk 0:02:59.9]} 7.
O-O {[%clk 0:03:07.4]} 7... O-O {[%clk 0:03:00.2]} 8. Nbd2 {[%clk 0:03:09.1]}
8... b6 {[%clk 0:03:00.6]} 9. e4 {[%clk 0:03:10.4]} 9... dxe4 {[%clk 0:03:01.2]}
10. Nxe4 {[%clk 0:03:12.3]} 10... Bb7 {[%clk 0:03:00.8]} 11. Rd1 {[%clk
0:03:13]} 11... Nxe4 {[%clk 0:03:01.2]} 12. Qxe4 {[%clk 0:03:13.7]} 12... Nf6
{[%clk 0:03:01.8]} 13. Qc2 {[%clk 0:03:14.6]} 13... Qc7 {[%clk 0:03:00.9]} 14.
Bf4 {[%clk 0:03:14.7]} 14... Bd6 {[%clk 0:03:01.7]} 15. Bxd6 {[%clk 0:03:15.5]}
15... Qxd6 {[%clk 0:03:02]} 16. c5 {[%clk 0:03:17.2]} 16... Qc7 {[%clk
0:02:57.7]} 17. Rac1 {[%clk 0:03:17.8]} 17... Rad8 {[%clk 0:02:56.7]} 18. a3
{[%clk 0:03:17.5]} 18... Nd5 {[%clk 0:02:49.7]} 19. Ng5 {[%clk 0:03:17.7]} 19...
Nf6 {[%clk 0:02:43]} 20. b4 {[%clk 0:03:16.8]} 20... h6 {[%clk 0:02:41.8]} 21.
Nf3 {[%clk 0:03:17.3]} 21... a5 {[%clk 0:02:33.1]} 22. bxa5 {[%clk 0:03:05.5]}
22... bxa5 {[%clk 0:02:33.2]} 23. Ne5 {[%clk 0:03:06.2]} 23... Nd5 {[%clk
0:02:33]} 24. Nc4 {[%clk 0:03:06.3]} 24... Ba6 {[%clk 0:02:28.7]} 25. Nd6 {[%clk
0:03:05.7]} 25... Qe7 {[%clk 0:02:20.1]} 26. Qd2 {[%clk 0:03:01.8]} 26... Qc7
{[%clk 0:02:18.6]} 27. Be4 {[%clk 0:03:02.2]} 27... Rb8 {[%clk 0:02:16.7]} 28.
Bb1 {[%clk 0:03:02.9]} 28... Rb3 {[%clk 0:02:15.8]} 29. Qc2 {[%clk 0:03:03.1]}
29... Rfb8 {[%clk 0:02:02.9]} 30. Qh7+ {[%clk 0:03:02.1]} 30... Kf8 {[%clk
0:02:03]} 31. Qh8+ {[%clk 0:03:02.4]} 31... Ke7 {[%clk 0:02:03.4]} 32. Qxg7
{[%clk 0:03:04.2]} 32... Rf3 {[%clk 0:01:46.4]} 33. Be4 {[%clk 0:02:55.1]} 33...
Rf6 {[%clk 0:01:42.9]} 34. Re1 {[%clk 0:02:45.4]} 34... Rb2 {[%clk 0:01:36.6]}
35. Rc2 {[%clk 0:02:02.9]} 35... Rb3 {[%clk 0:01:26.8]} 36. Bg6 {[%clk
0:01:30.6]} 36... Bd3 {[%clk 0:00:56.4]} 37. Bxf7 {[%clk 0:01:15]} 37... Bxc2
{[%clk 0:00:55.5]} 38. Bg6+ {[%clk 0:01:03.7]} 38... Kd8 {[%clk 0:00:51.5]} 39.
Qg8+ {[%clk 0:01:04.2]} 39... Kd7 {[%clk 0:00:38.6]} 40. Qe8# {[%clk 0:01:03.6]}
1-0

[Event "*** Titled Tuesday Blitz"]
[Site "Chess.com"]
[Date "2018.10.02"]
[Round "4"]
[White "albi1999"]
[Black "AkibaRubi"]
[Result "1-0"]
[WhiteElo "2406"]
[BlackElo "2494"]
[TimeControl "180+2"]
[EndTime "13:47:03 PDT"]
[Termination "albi1999 won on time"]

1. d4 {[%clk 0:02:58.5]} 1... Nf6 {[%clk 0:02:59.7]} 2. Nf3 {[%clk 0:02:58.9]}
2... g6 {[%clk 0:02:59.7]} 3. g3 {[%clk 0:02:59.5]} 3... Bg7 {[%clk 0:03:00.3]}
4. Bg2 {[%clk 0:03:00.7]} 4... O-O {[%clk 0:02:59.7]} 5. O-O {[%clk 0:03:01.5]}
5... d6 {[%clk 0:03:00.1]} 6. b3 {[%clk 0:03:02.6]} 6... Nbd7 {[%clk 0:03:00.1]}
7. Bb2 {[%clk 0:03:03.7]} 7... Re8 {[%clk 0:03:00.1]} 8. c4 {[%clk 0:03:00.6]}
8... c6 {[%clk 0:02:54.6]} 9. Nc3 {[%clk 0:03:00.9]} 9... Qc7 {[%clk 0:02:54.6]}
10. e4 {[%clk 0:02:59.5]} 10... e5 {[%clk 0:02:54.2]} 11. h3 {[%clk 0:02:59.9]}
11... h6 {[%clk 0:02:44.5]} 12. Re1 {[%clk 0:02:58.3]} 12... Nf8 {[%clk
0:02:22.7]} 13. Qd2 {[%clk 0:02:55.2]} 13... g5 {[%clk 0:02:21.4]} 14. Rad1
{[%clk 0:02:47.3]} 14... Ng6 {[%clk 0:02:21]} 15. d5 {[%clk 0:02:42.7]} 15... c5
{[%clk 0:02:20]} 16. a3 {[%clk 0:02:37.1]} 16... Nh7 {[%clk 0:01:50.8]} 17. Rc1
{[%clk 0:02:31.7]} 17... f5 {[%clk 0:01:50.2]} 18. exf5 {[%clk 0:02:28.5]} 18...
Bxf5 {[%clk 0:01:49.9]} 19. Nh2 {[%clk 0:02:29.6]} 19... Nf6 {[%clk 0:01:46.2]}
20. Ne4 {[%clk 0:02:26.2]} 20... Nxe4 {[%clk 0:01:33.7]} 21. Bxe4 {[%clk
0:02:27.4]} 21... Bxe4 {[%clk 0:01:34]} 22. Rxe4 {[%clk 0:02:28.7]} 22... a5
{[%clk 0:01:33.9]} 23. a4 {[%clk 0:02:25.3]} 23... Rf8 {[%clk 0:01:32.9]} 24.
Qe2 {[%clk 0:02:25.5]} 24... Qf7 {[%clk 0:01:23.1]} 25. Kg2 {[%clk 0:02:25]}
25... b6 {[%clk 0:01:05.5]} 26. Rc3 {[%clk 0:02:25.3]} 26... Qe7 {[%clk
0:01:01.4]} 27. Rf3 {[%clk 0:02:23.8]} 27... Rxf3 {[%clk 0:01:00.2]} 28. Qxf3
{[%clk 0:02:23.1]} 28... Rf8 {[%clk 0:01:00.8]} 29. Qg4 {[%clk 0:02:24.5]} 29...
Qf7 {[%clk 0:01:00.7]} 30. Re2 {[%clk 0:02:22.1]} 30... Qf5 {[%clk 0:01:00.5]}
31. Qxf5 {[%clk 0:02:22.5]} 31... Rxf5 {[%clk 0:00:59.9]} 32. Ng4 {[%clk
0:02:24.4]} 32... h5 {[%clk 0:01:00.1]} 33. Ne3 {[%clk 0:02:24.7]} 33... Rf7
{[%clk 0:01:00.1]} 34. Nd1 {[%clk 0:02:25.2]} 34... Kf8 {[%clk 0:00:57.4]} 35.
Nc3 {[%clk 0:02:25.2]} 35... Bf6 {[%clk 0:00:54.8]} 36. Ne4 {[%clk 0:02:25.8]}
36... Be7 {[%clk 0:00:54.9]} 37. Bc1 {[%clk 0:02:26.7]} 37... Rf5 {[%clk
0:00:53.2]} 38. Re3 {[%clk 0:02:22.3]} 38... h4 {[%clk 0:00:40.1]} 39. Rf3
{[%clk 0:02:22.4]} 39... Rxf3 {[%clk 0:00:36.9]} 40. Kxf3 {[%clk 0:02:24.3]}
40... hxg3 {[%clk 0:00:28.6]} 41. fxg3 {[%clk 0:02:25.1]} 41... g4+ {[%clk
0:00:21.3]} 42. Kxg4 {[%clk 0:02:25.3]} 42... Kg7 {[%clk 0:00:21.2]} 43. h4
{[%clk 0:02:25.9]} 43... Nh8 {[%clk 0:00:18.4]} 44. Kf5 {[%clk 0:02:26.6]} 44...
Kf7 {[%clk 0:00:17.9]} 45. h5 {[%clk 0:02:24.8]} 45... Bf8 {[%clk 0:00:16.9]}
46. g4 {[%clk 0:02:25.4]} 46... Ke7 {[%clk 0:00:17.1]} 47. g5 {[%clk 0:02:26.1]}
47... Nf7 {[%clk 0:00:17.7]} 48. h6 {[%clk 0:02:25.7]} 48... Nh8 {[%clk
0:00:17]} 49. g6 {[%clk 0:02:21.9]} 49... Kd7 {[%clk 0:00:04.3]} 50. g7 {[%clk
0:02:21.9]} 1-0